bitfinex-derivatives/quotes_SOLF0:USTF0_20240913
["timestamp","ask_amount","ask_price","bid_price","bid_amount"]
[1726186173867,9.04,136.07,136.03,7.1758]
[1726186174253,9.04,136.05,136.03,7.1758]
[1726186178275,9.04,136.04,136.03,5.88]
[1726186178661,3.6984337,136.09,136.03,5.88]
[1726186178860,9.04,136.04,136.03,5.88]
[1726186181970,6.94292911,136.07,136.03,5.88]
[1726186182169,9.04,136.05,136.03,5.88]
[1726186183266,9.04,136.04,136.03,5.88]
[1726186184963,12.3476,136.04,136.03,5.88]
[1726186188180,3.3076,136.04,136.03,5.88]
[1726186188379,12.3476,136.04,136.03,5.88]
[1726186189684,12.3476,136.04,136.03,10.26]
[1726186191284,12.3476,136.04,136.03,11.27]
[1726186197190,12.3476,136.04,136.03,12.7]
[1726186197790,3.3076,136.04,136.03,12.7]
[1726186198089,12.3476,136.04,136.03,12.7]
[1726186200691,9.04,136.04,136.03,12.7]
[1726186201478,12.3476,136.04,136.03,12.7]
[1726186202586,9.04,136.04,136.03,12.7]
[1726186204690,9.04,136.05,136.03,12.7]
[1726186206684,9.04,136.05,136.03,16.0078]
[1726186207391,9.04,136.05,136.03,12.7]
[1726186208293,9.04,136.05,136.03,16.0079]
[1726186208989,3.3069,136.07,136.03,16.0079]
[1726186209291,9.04,136.06,136.03,16.0079]
[1726186210390,9.04,136.07,136.04,3.3076]
[1726186210589,9.04,136.07,136.04,4.716]
[1726186211379,9.04,136.06,136.04,4.716]
[1726186211596,9.04,136.06,136.04,1.4084]
[1726186211893,9.04,136.07,136.04,1.4084]
[1726186212191,9.04,136.07,136.04,9.0959]
[1726186212891,9.04,136.08,136.05,3.3074]
[1726186213583,9.04,136.08,136.05,4.7115]
[1726186214286,9.04,136.08,136.05,1.4041]
[1726186214287,12.3467,136.08,136.05,1.4041]
[1726186214791,9.04,136.08,136.05,4.7115]
[1726186215094,9.04,136.08,136.06,1.43]
[1726186215394,9.04,136.08,136.06,4.7371]
[1726186215587,9.04,136.09,136.06,4.7371]
[1726186215784,9.04,136.09,136.06,1.43]
[1726186215988,9.04,136.09,136.07,3.3069]
[1726186216795,9.04,136.09,136.06,4.737]
[1726186217295,12.3464,136.09,136.06,4.737]
[1726186217595,9.04,136.08,136.06,1.43]
[1726186217786,9.04,136.07,136.06,1.43]
[1726186218884,9.04,136.07,136.06,7.3]
[1726186219192,12.3469,136.07,136.06,7.3]
[1726186220101,9.04,136.07,136.06,7.3]
[1726186223600,3.3065,136.09,136.06,7.3]
[1726186223803,9.04,136.07,136.06,7.3]
[1726186226601,9.04,136.07,136.06,8.31]
[1726186231909,9.04,136.07,136.04,4.38]
[1726186232100,9.04,136.05,136.04,4.38]
[1726186232300,12.3474,136.05,136.04,4.38]
[1726186232599,3.3074,136.05,136.04,4.38]
[1726186232798,12.3474,136.05,136.04,4.38]
[1726186233304,3.308,136.03,136.0,2.7024]
[1726186233504,9.04,136.01,136.0,2.7024]
[1726186242013,9.04,136.01,136.0,8.5824]
[1726186245897,9.04,136.01,136.0,5.88]
[1726186246312,12.3484,136.01,136.0,5.88]
[1726186246616,3.3084,136.01,136.0,5.88]
[1726186246814,12.3484,136.01,136.0,5.88]
[1726186253720,3.308,136.03,136.0,5.88]
[1726186254026,6.6131,136.09,136.0,5.88]
[1726186254027,9.04,136.02,136.0,5.88]
[1726186254819,12.72498421,136.02,136.0,5.88]
[1726186255320,16.03328421,136.02,136.0,5.88]
[1726186255525,9.04,136.01,136.0,5.88]
[1726186255907,12.77123366,136.01,136.0,5.88]
[1726186257025,16.07963366,136.01,136.0,5.88]
[1726186259335,12.77123366,136.01,136.0,5.88]
[1726186259839,16.07963366,136.01,136.0,5.88]
[1726186261128,12.3484,136.01,136.0,5.88]
[1726186262445,12.71468583,136.02,136.0,5.88]
[1726186262646,9.04,136.02,136.0,5.88]
[1726186263148,12.7565206,136.02,136.0,5.88]
[1726186263542,16.0646206,136.02,136.0,5.88]
[1726186264440,12.7565206,136.02,136.0,5.88]
[1726186265348,3.7165206,136.02,136.0,5.88]
[1726186265649,9.04,136.02,136.0,5.88]
[1726186265846,12.67201647,136.02,136.0,5.88]
[1726186266748,9.04,136.02,136.0,5.88]
[1726186269957,12.3482,136.02,136.0,5.88]
[1726186270579,12.75551533,136.03,136.0,5.88]
[1726186272750,9.04,136.03,136.0,5.88]
[1726186273854,3.3073,136.06,136.01,3.3084]
[1726186274155,9.04,136.04,136.0,11.7293]
[1726186275057,9.04,136.04,136.0,15.0378]
[1726186275551,9.04,136.04,136.0,20.9178]
[1726186275949,9.04,136.01,136.0,5.88]
[1726186276144,12.3484,136.01,136.0,5.88]
[1726186276356,12.3484,136.01,135.98,17.16259257]
[1726186276357,9.04,136.01,135.98,17.16259257]
[1726186276556,9.04,135.99,135.98,17.16259257]
[1726186277864,12.7866902,135.99,135.98,17.16259257]
[1726186278245,12.7866902,135.99,135.98,17.40259257]
[1726186280848,3.3088,136.0,135.98,17.40259257]
[1726186281054,9.04,135.99,135.98,17.40259257]
[1726186295073,9.04,135.99,135.97,3.13298853]
[1726186295269,9.04,135.98,135.97,3.13298853]
[1726186295862,12.3491,135.98,135.97,3.13298853]
[1726186296561,15.93981512,135.98,135.97,3.13298853]
[1726186299664,3.309,135.99,135.97,3.13298853]
[1726186299871,9.04,135.98,135.97,3.13298853]
[1726186301273,3.65499227,135.99,135.97,3.13298853]
[1726186301465,16.39625186,136.08,135.97,3.13298853]
[1726186301775,9.04,135.99,135.97,3.13298853]
[1726186309070,9.04,135.99,135.97,6.44228853]
[1726186311289,3.3087,136.0,135.97,6.44228853]
[1726186311469,9.04,135.99,135.97,6.44228853]
[1726186318084,16.40112311,136.09,135.97,3.13298853]
[1726186318394,9.04,136.02,135.97,12.17298853]
[1726186318589,9.04,136.02,135.98,1.2898]
[1726186318789,9.04,136.02,135.99,3.3087]
[1726186320193,12.3481,136.02,135.99,3.3087]
[1726186321995,3.308,136.03,135.99,12.3488]
[1726186322186,9.04,136.07,136.02,9.04]
[1726186322390,3.66391995,136.12,136.03,7.361]
[1726186322583,9.04,136.08,136.04,3.3075]
[1726186322787,16.40273729,136.17,136.03,17.7674]
[1726186322788,16.40273729,136.16,136.03,17.7674]
[1726186322986,3.65992647,136.16,136.05,9.04]
[1726186323325,6.6077,136.2,136.05,9.04]
[1726186323326,9.04,136.09,136.05,9.04]
[1726186323489,9.04,136.09,136.06,4.6699]
[1726186323801,9.04,136.09,136.06,5.9883]
[1726186323991,9.04,136.09,136.06,2.6813]
[1726186324202,9.04,136.08,136.06,2.6813]
[1726186325517,9.04,136.1,136.06,2.6813]
[1726186327104,9.04,136.08,136.06,2.6813]
[1726186331306,9.04,136.09,136.06,5.9884]
[1726186332133,12.3465,136.09,136.06,2.6813]
[1726186334617,9.04,136.09,136.06,5.9884]
[1726186335008,9.04,136.12,136.08,9.04]
[1726186335217,12.3459,136.12,136.08,9.04]
[1726186336021,233.9081,136.25,136.11,9.04]
[1726186336022,3.71487049,136.23,136.11,9.04]
[1726186336217,9.9081,136.25,136.11,9.04]
[1726186336218,9.04,136.17,136.11,9.04]
[1726186336521,9.04,136.14,136.1,1.3712]
[1726186336723,9.04,136.11,136.07,7.361]
[1726186336924,9.04,136.1,136.07,7.361]
[1726186337229,9.04,136.09,136.06,2.6813]
[1726186338131,9.04,136.08,136.06,2.6813]
[1726186338331,9.04,136.08,136.04,17.7722]
[1726186338332,9.04,136.08,136.04,1.3712]
[1726186339127,12.3468,136.08,136.04,4.6787]
[1726186339434,12.3468,136.08,136.05,7.361]
[1726186340319,9.04,136.08,136.05,7.361]
[1726186342615,12.3467,136.08,136.05,7.361]
[1726186344936,12.3467,136.08,136.04,12.3475]
[1726186345133,12.3467,136.08,135.98,2.7113]
[1726186345134,3.3071,136.07,136.03,12.3478]
[1726186345427,9.04,136.08,136.03,9.04]
[1726186345932,12.3468,136.08,136.04,12.3475]
[1726186347126,12.347,136.07,136.03,12.3478]
[1726186350132,12.347,136.07,136.04,3.3075]
[1726186352145,12.347,136.07,136.03,12.3478]
[1726186353027,3.3074,136.06,136.02,3.308]
[1726186353229,9.04,136.06,136.02,3.308]
[1726186353825,3.3075,136.05,136.01,9.04]
[1726186354842,3.3075,136.05,136.02,3.308]
[1726186355343,9.04,136.05,135.99,8.72]
[1726186355642,9.04,136.04,135.99,17.76]
[1726186356235,3.308,136.03,135.99,21.0687]
[1726186356639,3.308,136.03,135.99,17.76]
[1726186357231,3.308,136.03,135.99,21.0687]
[1726186357638,12.3478,136.04,136.0,3.3085]
[1726186358047,3.3078,136.04,135.99,17.76]
[1726186358235,12.3478,136.04,135.99,17.76]
[1726186358643,12.3478,136.04,136.0,3.3085]
[1726186362046,12.3478,136.04,136.01,3.3083]
[1726186362242,12.3474,136.05,136.01,9.04]
[1726186363845,12.3474,136.05,136.02,3.3081]
[1726186365838,12.3474,136.05,136.01,12.3483]
[1726186367556,9.04,136.05,136.01,9.04]
[1726186367756,9.04,136.04,136.0,9.04]
[1726186368144,9.04,136.04,136.01,3.3082]
[1726186369244,9.04,136.04,136.01,10.6692]
[1726186370456,12.3477,136.04,136.01,10.6692]
[1726186372442,12.3477,136.04,136.0,3.3084]
[1726186373060,12.3477,136.04,136.01,3.3084]
[1726186377859,9.04,136.04,136.01,3.3084]
[1726186379068,6.6105,136.14,136.04,3.3075]
[1726186379069,3.3067,136.08,136.04,3.3075]
[1726186379248,9.04,136.08,136.03,9.04]
[1726186379448,9.04,136.07,136.03,9.04]
[1726186379644,12.3471,136.07,136.03,12.3477]
[1726186379849,12.3471,136.07,136.03,3.3077]
[1726186383859,3.3068,136.08,136.04,3.3076]
[1726186384171,9.04,136.07,136.03,9.04]
[1726186384355,9.04,136.08,136.05,3.3072]
[1726186386260,10.26170882,136.19,136.05,9.04]
[1726186386468,9.04,136.1,136.05,9.04]
[1726186386658,9.04,136.1,136.07,3.3067]
[1726186386862,9.04,136.1,136.05,9.04]
[1726186387461,9.04,136.1,136.05,16.401]
[1726186387670,9.04,136.08,136.05,7.361]
[1726186387865,9.04,136.08,136.06,3.3071]
[1726186391168,6.6084,136.19,136.06,9.04]
[1726186391372,9.04,136.11,136.07,3.3069]
[1726186391868,12.3461,136.11,136.07,3.3069]
[1726186393375,9.04,136.09,136.07,3.3069]
[1726186394272,3.3061,136.11,136.07,3.3069]
[1726186394473,9.04,136.09,136.07,3.3069]
[1726186394665,9.04,136.09,136.06,3.307]
[1726186395062,3.3061,136.11,136.06,3.307]
[1726186395266,9.04,136.09,136.06,3.307]
[1726186396476,3.59505955,136.12,136.05,16.401]
[1726186396670,9.04,136.1,136.05,16.401]
[1726186397162,9.04,136.1,136.07,3.3068]
[1726186398397,12.3462,136.1,136.06,3.3071]
[1726186400070,3.62006142,136.11,136.04,1.3335]
[1726186400071,9.04,136.07,136.04,1.3335]
[1726186400269,9.04,136.06,136.04,1.3335]
[1726186402471,9.04,136.06,136.04,4.6411]
[1726186403702,9.04,136.06,136.04,1.3335]
[1726186405782,3.3069,136.07,136.04,1.3335]
[1726186406190,12.3469,136.07,136.04,1.3335]
[1726186407793,9.04,136.05,136.02,3.308]
[1726186408181,9.04,136.05,136.02,12.348]
[1726186408382,9.04,136.07,136.03,3.3077]
[1726186408781,16.41822536,136.16,136.04,9.04]
[1726186408984,16.41822536,136.17,136.05,3.3072]
[1726186409194,9.04,136.09,136.05,3.3072]
[1726186409897,12.3466,136.09,136.04,12.3475]
[1726186410487,9.04,136.08,136.04,3.3075]
[1726186412785,9.04,136.08,136.03,9.04]
[1726186412786,12.3466,136.09,136.05,3.3074]
[1726186412989,3.3063,136.1,136.05,3.3074]
[1726186413290,9.04,136.09,136.05,3.3074]
[1726186413694,9.04,136.09,136.06,9.04]
[1726186413890,12.346,136.11,136.06,9.04]
[1726186414091,3.306,136.11,136.06,9.04]
[1726186414292,9.04,136.11,136.07,12.3467]
[1726186414493,9.04,136.11,136.07,9.04]
[1726186415384,9.04,136.11,136.07,12.3467]
[1726186416389,9.04,136.11,136.08,3.3066]
[1726186418599,9.04,136.11,136.07,12.3468]
[1726186419799,9.04,136.11,136.08,3.3067]
[1726186420997,9.04,136.11,136.07,12.3468]
[1726186422200,12.3459,136.11,136.07,12.3468]
[1726186422394,9.04,136.11,136.08,3.3066]
[1726186424389,9.04,136.11,136.07,9.04]
[1726186424390,12.3459,136.11,136.07,12.3468]
[1726186426100,9.04,136.11,136.07,12.3468]
[1726186427804,9.04,136.1,136.06,3.3071]
[1726186428903,12.3463,136.1,136.06,3.3071]
[1726186429788,9.04,136.09,136.04,17.7953]
[1726186430493,12.3465,136.09,136.05,10.6683]
[1726186431207,3.3067,136.08,136.05,10.6683]
[1726186431394,3.3067,136.08,136.05,3.3073]
[1726186432289,3.3067,136.08,136.04,13.7419]
[1726186432789,3.3072,136.06,136.03,2.7608]
[1726186433098,3.3072,136.06,136.03,11.8008]
[1726186433804,3.3072,136.06,136.03,19.1578]
[1726186434702,3.3072,136.06,136.03,22.4657]
[1726186435293,3.3075,136.05,136.0,122.97168522]
[1726186435495,3.3075,136.05,136.0,130.32868522]
[1726186435496,12.3475,136.05,136.0,130.32868522]
[1726186435695,12.3475,136.05,136.01,12.3482]
[1726186435989,3.3076,136.04,136.01,9.04]
[1726186436604,3.3074,136.05,136.01,9.04]
[1726186437295,3.3074,136.05,136.01,12.3482]
[1726186438307,3.3077,136.04,136.01,9.04]
[1726186439900,12.3475,136.05,136.01,9.04]
[1726186440509,12.3475,136.05,136.01,12.3483]
[1726186448010,12.3475,136.05,136.01,9.04]
[1726186452506,3.3077,136.04,136.01,9.04]
[1726186456620,12.3477,136.04,136.01,9.04]
[1726186460109,3.3079,136.03,136.0,130.32868522]
[1726186461722,12.3477,136.04,136.0,133.63728522]
[1726186462215,9.04,136.04,136.01,3.3082]
[1726186462415,9.04,136.04,136.0,130.32868522]
[1726186463923,9.04,136.04,136.0,133.63718522]
[1726186464319,12.3477,136.04,136.0,133.63718522]
[1726186466728,12.3477,136.04,136.0,10.6655]
[1726186472025,9.04,136.03,136.0,10.6655]
[1726186476330,12.3479,136.03,136.0,10.6655]
[1726186476732,12.3479,136.03,136.0,7.357]
[1726186477130,3.69529859,136.06,135.99,2.6665]
[1726186477131,9.04,136.01,135.99,2.6665]
[1726186477335,9.04,136.0,135.99,2.6665]
[1726186477533,9.04,136.0,135.97,3.13298853]
[1726186478031,12.3488,136.0,135.97,3.13298853]
[1726186478534,9.04,135.99,135.97,3.13298853]
[1726186479335,12.3489,135.99,135.97,3.13298853]
[1726186480638,3.3087,136.0,135.97,3.13298853]
[1726186480937,12.3487,136.0,135.97,3.13298853]
[1726186484538,9.04,135.98,135.97,3.13298853]
[1726186489929,3.3089,135.99,135.97,3.13298853]
[1726186490139,12.3489,135.99,135.97,3.13298853]
[1726186496234,9.04,135.99,135.97,3.13298853]
[1726186498052,12.349,135.99,135.97,3.13298853]
[1726186499756,9.04,135.99,135.97,3.13298853]
[1726186499952,3.62098708,136.02,135.97,3.13298853]
[1726186500138,9.04,135.99,135.97,3.13298853]
[1726186501650,12.3491,135.98,135.97,3.13298853]
[1726186503848,3.3089,135.99,135.97,3.13298853]
[1726186504161,12.3489,135.99,135.97,3.13298853]
[1726186505751,12.3491,135.98,135.97,3.13298853]
[1726186509045,3.3091,135.98,135.97,3.13298853]
[1726186509346,12.3491,135.98,135.97,3.13298853]
[1726186510151,3.3091,135.98,135.97,3.13298853]
[1726186510358,12.3491,135.98,135.97,3.13298853]
[1726186510555,9.04,135.98,135.97,3.13298853]
[1726186510758,6.6117,136.12,135.97,3.13298853]
[1726186510962,9.04,136.02,135.97,12.17298853]
[1726186511155,9.04,136.02,135.97,19.52998853]
[1726186511461,9.04,136.02,135.97,20.87098853]
[1726186511763,12.3482,136.02,135.98,3.309]
[1726186512675,6.9141726,136.03,135.99,3.3087]
[1726186512842,9.04,136.01,135.97,20.87098853]
[1726186513848,9.04,136.01,135.98,3.309]
[1726186514049,9.04,136.0,135.97,10.48998853]
[1726186514250,9.04,135.99,135.97,10.48998853]
[1726186515851,9.04,136.0,135.97,13.79928853]
[1726186517365,12.3482,136.02,135.98,3.309]
[1726186518169,3.3084,136.01,135.97,13.79918853]
[1726186518369,12.3484,136.01,135.97,13.79918853]
[1726186521068,12.3484,136.01,135.98,3.3091]
[1726186523464,12.3484,136.01,135.97,13.79918853]
[1726186523856,9.04,135.98,135.97,3.13298853]
[1726186524773,12.3491,135.98,135.97,3.13298853]
[1726186532280,12.3491,135.98,135.95,11.25109306]
[1726186532281,9.04,135.98,135.95,11.25109306]
[1726186532462,9.04,135.96,135.93,15.83089274]
[1726186532668,9.04,135.98,135.91,12.9360905]
[1726186532669,9.04,135.94,135.91,12.9360905]
[1726186532968,9.04,135.98,135.91,12.9360905]
[1726186532969,9.04,135.93,135.91,12.9360905]
[1726186533682,9.04,135.92,135.91,12.9360905]
[1726186534874,12.3506,135.92,135.91,12.9360905]
[1726186535467,3.3108,135.91,135.9,10.78877283]
[1726186535671,3.3108,135.91,135.87,16.76245505]
[1726186535672,9.04,135.91,135.87,16.76245505]
[1726186535872,9.04,135.89,135.87,16.76245505]
[1726186536772,12.3513,135.89,135.87,16.76245505]
[1726186537177,9.04,135.89,135.87,16.76245505]
[1726186542387,12.3513,135.89,135.87,16.76245505]
[1726186542995,9.04,135.89,135.87,16.76245505]
[1726186543490,12.3513,135.89,135.87,16.76245505]
[1726186545389,9.04,135.89,135.87,16.76245505]
[1726186548294,9.04,135.89,135.87,20.07415505]
[1726186548595,9.04,135.89,135.87,16.76245505]
[1726186548782,3.3109,135.91,135.88,8.00222272]
[1726186548783,9.04,135.91,135.88,8.00222272]
[1726186548991,9.04,135.92,135.88,17.04222272]
[1726186549788,3.63164482,135.95,135.88,17.04222272]
[1726186549993,9.04,135.92,135.88,17.04222272]
[1726186550193,9.04,135.92,135.88,8.00222272]
[1726186550787,9.04,135.92,135.88,11.31362272]
[1726186552000,12.3506,135.92,135.88,11.31362272]
[1726186552191,9.04,135.92,135.89,3.3113]
[1726186552583,12.3504,135.93,135.88,17.04222272]
[1726186552787,9.04,135.93,135.88,17.04222272]
[1726186552995,12.3502,135.94,135.9,12.3508]
[1726186553199,6.6147,136.06,135.92,9.04]
[1726186553400,9.04,135.97,135.93,16.397]
[1726186553588,12.3494,135.97,135.93,19.7072]
[1726186553791,3.3094,135.97,135.93,19.7072]
[1726186554001,12.3494,135.97,135.93,19.7072]
[1726186554198,3.3094,135.97,135.93,19.7072]
[1726186554396,12.3497,135.96,135.92,7.357]
[1726186555501,12.3497,135.96,135.92,10.6674]
[1726186555804,12.3494,135.97,135.93,16.397]
[1726186556603,12.3494,135.97,135.93,19.7071]
[1726186557807,3.3097,135.96,135.93,7.357]
[1726186558305,13.4897,135.96,135.93,7.357]
[1726186558691,3.3099,135.95,135.93,7.357]
[1726186559001,3.3099,135.95,135.92,7.357]
[1726186559498,3.3099,135.95,135.92,10.6675]
[1726186560499,13.4899,135.95,135.92,7.357]
[1726186562291,13.4899,135.95,135.92,10.6675]
[1726186562498,10.18,135.95,135.92,10.6675]
[1726186564210,13.4896,135.96,135.92,10.6675]
[1726186564506,10.18,135.96,135.93,10.6671]
[1726186566505,13.4894,135.97,135.94,3.3099]
[1726186566702,10.18,135.97,135.94,3.3099]
[1726186566902,10.18,135.99,135.93,17.537]
[1726186567104,10.18,135.99,135.95,3.3097]
[1726186567402,3.3091,135.98,135.95,3.3097]
[1726186567603,3.3091,135.98,135.93,17.537]
[1726186567807,3.3094,135.97,135.93,17.537]
[1726186568308,10.18,135.96,135.93,10.6672]
[1726186569609,3.60660081,136.01,135.94,3.3099]
[1726186569812,13.4893,135.98,135.93,17.537]
[1726186570016,13.4893,135.98,135.95,3.3098]
[1726186570519,3.6172074,136.01,135.93,17.537]
[1726186570818,10.18,136.02,135.97,10.18]
[1726186571015,10.18,136.02,135.97,11.5048]
[1726186571262,10.18,136.02,135.97,16.2229]
[1726186571263,3.3084,136.01,135.97,16.2229]
[1726186571611,10.18,136.02,135.97,12.9136]
[1726186571831,3.71173885,136.04,135.97,12.9136]
[1726186572020,10.18,136.01,135.97,2.7336]
[1726186572210,10.18,135.99,135.97,2.7336]
[1726186575015,13.4888,136.0,135.97,2.7336]
[1726186575723,10.18,136.0,135.97,6.0429]
[1726186575913,10.18,136.01,135.97,12.9136]
[1726186576713,10.18,136.01,135.98,3.3091]
[1726186577822,13.4884,136.01,135.98,3.3091]
[1726186578323,13.4884,136.01,135.97,16.2228]
[1726186578527,13.4884,136.01,135.97,6.0428]
[1726186579520,13.4889,135.99,135.95,10.6667]
[1726186580023,13.4889,135.99,135.96,3.3096]
[1726186580224,10.18,135.99,135.96,3.3096]
[1726186580412,10.18,135.99,135.95,7.357]
[1726186580922,13.489,135.99,135.95,10.6667]
[1726186581821,10.18,135.99,135.96,3.3095]
[1726186582023,10.18,135.99,135.95,7.357]
[1726186582425,13.489,135.99,135.95,10.6667]
[1726186583430,10.18,135.96,135.93,24.9698]
[1726186583926,10.18,135.95,135.93,10.1461]
[1726186584827,13.4899,135.95,135.91,10.6676]
[1726186587424,3.3101,135.94,135.91,10.6676]
[1726186589718,3.3103,135.93,135.91,10.6676]
[1726186590321,3.3103,135.93,135.91,7.357]
[1726186591929,10.18,135.93,135.9,7.357]
[1726186592130,10.18,135.91,135.88,0.64522272]
[1726186592336,10.18,135.89,135.88,0.64522272]
[1726186592628,10.18,135.9,135.88,0.64522272]
[1726186594237,13.4912,135.9,135.88,0.64522272]
[1726186599039,3.3109,135.91,135.88,0.64522272]
[1726186599233,10.18,135.9,135.88,0.64522272]
[1726186601535,10.18,135.9,135.88,3.95662272]
[1726186602649,10.18,135.9,135.88,0.64522272]
[1726186604354,10.18,135.89,135.88,0.64522272]
[1726186605546,10.18,135.9,135.88,0.64522272]
[1726186607141,10.18,135.89,135.88,0.64522272]
[1726186607845,13.4913,135.89,135.88,0.64522272]
[1726186608345,10.18,135.89,135.88,0.64522272]
[1726186613857,10.18,135.9,135.88,0.64522272]
[1726186614832,13.4911,135.9,135.88,0.64522272]
[1726186615039,10.18,135.89,135.88,0.64522272]
[1726186618444,10.18,135.9,135.88,0.64522272]
[1726186619354,13.491,135.9,135.88,0.64522272]
[1726186619548,10.18,135.89,135.88,0.64522272]
[1726186630258,10.17,135.89,135.88,0.64522272]
[1726186631550,3.3111,135.9,135.88,0.64522272]
[1726186631754,10.17,135.9,135.88,0.64522272]
[1726186634265,3.3109,135.91,135.88,8.00222272]
[1726186634266,10.17,135.91,135.88,8.00222272]
[1726186634867,10.17,135.91,135.88,11.31362272]
[1726186635553,13.4808,135.91,135.88,8.00222272]
[1726186636262,10.17,135.91,135.88,11.31372272]
[1726186638571,10.17,135.9,135.88,8.00222272]
[1726186641966,13.4812,135.9,135.88,8.00222272]
[1726186642151,10.17,135.89,135.88,8.00222272]
[1726186642358,10.17,135.89,135.87,16.76245505]
[1726186642564,10.17,135.88,135.87,16.76245505]
[1726186642866,10.18,135.88,135.87,16.76245505]
[1726186643264,10.18,135.88,135.86,4.60691604]
[1726186643465,10.18,135.87,135.86,4.60691604]
[1726186644271,13.4918,135.87,135.86,4.60691604]
[1726186646573,3.312,135.86,135.85,3.39139788]
[1726186646773,10.18,135.86,135.84,7.35219779]
[1726186646978,10.18,135.85,135.84,7.35219779]
[1726186647268,13.4923,135.85,135.84,7.35219779]
[1726186647861,13.88912831,135.85,135.83,10.84635681]
[1726186648063,6.6209,135.93,135.8,4.53963608]
[1726186648266,16.33449187,135.95,135.8,4.53963608]
[1726186648467,10.18,135.84,135.82,3.313]
[1726186648966,10.18,135.84,135.8,14.71963608]
[1726186649162,10.18,135.84,135.81,6.82275478]
[1726186649559,16.33449187,135.98,135.82,10.18]
[1726186649869,10.18,135.87,135.83,7.357]
[1726186650070,10.18,135.87,135.84,7.357]
[1726186652778,13.4918,135.87,135.84,7.357]
[1726186652979,13.4918,135.87,135.83,7.357]
[1726186653367,10.18,135.85,135.83,7.357]
[1726186654077,10.18,135.85,135.82,7.357]
[1726186654384,13.4923,135.85,135.81,6.82285478]
[1726186654581,13.4923,135.85,135.81,3.50965478]
[1726186654582,10.18,135.83,135.81,3.50965478]
[1726186655062,3.64808473,135.9,135.81,3.50965478]
[1726186655063,10.18,135.82,135.81,3.50965478]
[1726186656067,10.18,135.83,135.81,3.50965478]
[1726186659987,10.18,135.82,135.81,3.50965478]
[1726186670398,13.493,135.82,135.81,3.50965478]
[1726186677525,10.18,135.82,135.81,3.50965478]
[1726186679007,10.18,135.83,135.81,3.50965478]
[1726186682502,3.3124,135.85,135.81,6.82285478]
[1726186682813,14.31051032,135.95,135.81,3.50965478]
[1726186683018,10.18,135.84,135.81,6.82275478]
[1726186686308,10.18,135.85,135.81,3.50965478]
[1726186686510,3.3121,135.86,135.82,10.18]
[1726186686725,13.4916,135.88,135.83,10.18]
[1726186687205,13.4916,135.88,135.84,1.4063]
[1726186687804,13.4916,135.88,135.84,4.7187]
[1726186688117,10.18,135.86,135.84,1.4063]
[1726186689513,10.18,135.85,135.84,1.4063]
[1726186693017,13.4923,135.85,135.82,3.3129]
[1726186693205,10.18,135.83,135.81,10.86665478]
[1726186693405,10.18,135.83,135.81,3.50965478]
[1726186693611,13.4929,135.83,135.81,3.50965478]
[1726186693915,10.18,135.82,135.81,3.50965478]
[1726186694121,13.493,135.82,135.81,3.50965478]
[1726186701423,3.3129,135.83,135.81,3.50965478]